bitfinex/quotes_SOLUSD_20230103
["timestamp","ask_amount","ask_price","bid_price","bid_amount"]
[1672774776421,43.01704946,12.922,12.912,30.0]
[1672774778510,43.01704946,12.922,12.911,108.30529752]
[1672774779245,43.01704946,12.922,12.911,50.15529752]
[1672774781137,30.0,12.921,12.91,13.63]
[1672774781347,88.1,12.921,12.908,159.5694]
[1672774781764,58.1,12.921,12.908,159.5694]
[1672774782077,43.01704946,12.922,12.908,159.5694]
[1672774782308,101.11704946,12.922,12.909,30.0]
[1672774782508,43.01704946,12.922,12.909,30.0]
[1672774782718,101.11704946,12.922,12.909,30.0]
[1672774783670,101.11704946,12.922,12.91,13.63]
[1672774783893,43.01704946,12.922,12.91,13.63]
[1672774786075,43.01704946,12.922,12.911,30.0]
[1672774786287,43.01704946,12.922,12.912,58.14]
[1672774786513,43.01704946,12.922,12.913,30.0]
[1672774787020,43.01704946,12.922,12.912,108.29529752]
[1672774787771,43.01704946,12.922,12.911,58.15]
[1672774787971,43.01704946,12.922,12.91,13.63]
[1672774788806,58.1,12.921,12.909,30.0]
[1672774789035,58.1,12.921,12.91,13.63]
[1672774789248,43.01704946,12.922,12.91,13.63]
[1672774791968,43.01704946,12.922,12.911,30.0]
[1672774792611,43.01704946,12.922,12.911,80.12669752]
[1672774793468,43.01704946,12.922,12.911,50.12669752]
[1672774797355,43.01704946,12.922,12.912,30.0]
[1672774798302,43.01704946,12.922,12.912,80.12669752]
[1672774798528,43.01704946,12.922,12.912,187.15682064]
[1672774798705,43.01704946,12.922,12.914,30.0]
[1672774799126,43.01704946,12.922,12.914,80.12669752]
[1672774799567,43.01704946,12.922,12.914,50.12669752]
[1672774800825,43.01704946,12.922,12.914,150.4854428]
[1672774801021,43.01704946,12.922,12.916,30.0]
[1672774801237,43.01704946,12.922,12.918,30.0]
[1672774802507,43.01704946,12.922,12.918,72.22874528]
[1672774802706,43.01704946,12.922,12.918,179.16306355]
[1672774803552,43.01704946,12.922,12.918,190.24444139]
[1672774803761,43.01704946,12.922,12.92,30.0]
[1672774803982,0.00704946,12.922,12.92,30.0]
[1672774804197,2.4751736,12.929,12.922,30.0]
[1672774804399,2.4751736,12.929,12.923,58.09]
[1672774804606,18.29240302,12.937,12.924,30.0]
[1672774804820,48.29240302,12.937,12.924,53.83603086]
[1672774805146,18.29240302,12.937,12.924,53.83603086]
[1672774805354,18.29240302,12.937,12.924,110.64365161]
[1672774805546,58.02,12.939,12.924,110.64365161]
[1672774805753,40.32797989,12.938,12.925,53.83603086]
[1672774805967,70.32797989,12.936,12.922,42.22874528]
[1672774806177,30.0,12.934,12.919,117.5116]
[1672774806495,30.0,12.932,12.919,117.5116]
[1672774806715,58.06,12.931,12.919,117.5116]
[1672774806925,30.0,12.93,12.919,117.5116]
[1672774807140,58.06,12.929,12.919,117.5116]
[1672774807339,30.0,12.928,12.919,117.5116]
[1672774808183,30.0,12.93,12.919,181.70779019]
[1672774808506,58.06,12.931,12.919,181.70779019]
[1672774808717,58.05,12.933,12.92,13.63]
[1672774808911,88.04,12.934,12.92,13.63]
[1672774809117,30.0,12.934,12.921,64.1961856]
[1672774809545,88.04,12.935,12.921,64.1961856]
[1672774809751,58.04,12.935,12.921,64.1961856]
[1672774811127,30.0,12.934,12.921,64.1961856]
[1672774811664,88.04,12.935,12.921,64.1961856]
[1672774812287,58.04,12.935,12.921,64.1961856]
[1672774812497,58.04,12.935,12.922,30.0]
[1672774812709,30.0,12.935,12.922,88.1]
[1672774812926,30.0,12.935,12.923,64.1961856]
[1672774813550,88.03,12.936,12.923,64.1961856]
[1672774813766,30.0,12.936,12.923,64.1961856]
[1672774814506,58.03,12.937,12.923,123.25713968]
[1672774814719,24.315,12.94,12.93,13.63]
[1672774814911,44.5177527,12.941,12.93,13.63]
[1672774815244,30.0,12.94,12.93,64.1961856]
[1672774816805,43.63,12.94,12.927,104.231]
[1672774817018,43.63,12.94,12.927,46.161]
[1672774817542,43.63,12.94,12.914,30.0]
[1672774817543,118.34797989,12.939,12.92,23.5216]
[1672774817754,30.0,12.938,12.922,11.08137784]
[1672774817964,78.03,12.937,12.922,11.08137784]
[1672774818183,30.0,12.936,12.921,166.8502]
[1672774818381,30.0,12.934,12.921,167.81115408]
[1672774818591,30.0,12.934,12.921,108.7502]
[1672774819236,58.04,12.935,12.921,108.7502]
[1672774819564,30.0,12.934,12.921,108.7502]
[1672774819965,58.04,12.935,12.921,108.7502]
[1672774820282,30.0,12.935,12.921,166.8502]
[1672774820487,30.0,12.935,12.921,108.7502]
[1672774821121,58.04,12.934,12.921,108.7502]
[1672774821341,30.0,12.933,12.921,108.7502]
[1672774821548,30.0,12.931,12.921,108.7502]
[1672774821755,58.06,12.93,12.921,108.7502]
[1672774821959,30.0,12.929,12.921,108.7502]
[1672774826570,13.61,12.93,12.921,108.7502]
[1672774827207,58.06,12.929,12.913,58.14]
[1672774827417,30.0,12.927,12.912,115.4992]
[1672774827641,30.0,12.925,12.913,58.14]
[1672774828161,30.0,12.925,12.912,115.4992]
[1672774828586,58.07,12.928,12.912,115.4992]
[1672774828908,30.0,12.926,12.912,115.4992]
[1672774829303,30.0,12.926,12.913,58.14]
[1672774829513,58.08,12.925,12.912,115.4992]
[1672774829747,30.0,12.924,12.912,115.4992]
[1672774831112,88.08,12.926,12.912,115.4992]
[1672774832357,13.63,12.92,12.912,115.4992]
[1672774832566,20.0,12.919,12.907,58.16]
[1672774832785,58.11,12.918,12.906,2.4751736]
[1672774832982,50.0,12.917,12.906,2.4751736]
[1672774833818,108.12,12.917,12.906,2.4751736]
[1672774835926,78.12,12.917,12.906,2.4751736]
[1672774836780,30.0,12.916,12.906,2.4751736]
[1672774837504,30.0,12.914,12.906,2.4751736]
[1672774838904,58.13,12.915,12.906,2.4751736]
[1672774839092,88.12,12.916,12.906,2.4751736]
[1672774839530,30.0,12.916,12.906,2.4751736]
[1672774839847,78.12,12.917,12.906,2.4751736]
[1672774840060,20.0,12.917,12.906,2.4751736]
[1672774840269,58.09,12.923,12.907,58.16]
[1672774840999,58.08,12.925,12.907,58.16]
[1672774841211,30.0,12.922,12.907,58.16]
[1672774841821,30.0,12.922,12.907,112.3350056]
[1672774843202,30.0,12.92,12.907,112.3350056]
[1672774843848,58.11,12.919,12.906,2.4751736]
[1672774844051,50.0,12.918,12.906,2.4751736]
[1672774844370,30.0,12.916,12.906,2.4751736]
[1672774846365,58.12,12.917,12.906,2.4751736]
[1672774847830,30.0,12.916,12.906,2.4751736]
[1672774848269,30.0,12.914,12.906,2.4751736]
[1672774850285,58.13,12.915,12.906,2.4751736]
[1672774850798,58.12,12.917,12.906,2.4751736]
[1672774851950,30.0,12.916,12.906,2.4751736]
[1672774852140,58.13,12.915,12.906,2.4751736]
[1672774852351,30.0,12.914,12.906,2.4751736]
[1672774852670,30.0,12.912,12.906,2.4751736]
[1672774852887,58.15,12.911,12.906,2.4751736]
[1672774855737,30.0,12.909,12.896,2.4751736]
[1672774855945,30.0,12.907,12.896,2.4751736]
[1672774856143,58.17,12.906,12.896,2.4751736]
[1672774856353,30.0,12.905,12.896,2.4751736]
[1672774856897,30.0,12.903,12.896,2.4751736]
[1672774858464,58.18,12.904,12.896,2.4751736]
[1672774858679,58.15,12.909,12.896,2.4751736]
[1672774858889,20.0,12.908,12.896,2.4751736]
[1672774859205,58.16,12.907,12.896,2.4751736]
[1672774860996,30.0,12.906,12.896,2.4751736]
[1672774861205,30.0,12.906,12.896,40.52240015]
[1672774861394,58.17,12.905,12.896,40.52240015]
[1672774861605,30.0,12.904,12.896,40.52240015]
[1672774862553,58.17,12.905,12.896,40.52240015]
[1672774862754,58.16,12.907,12.896,40.52240015]
[1672774862976,20.0,12.908,12.896,40.52240015]
[1672774863186,58.15,12.911,12.896,51.60377799]
[1672774863413,30.0,12.914,12.9,13.63]
[1672774863414,58.14,12.912,12.9,13.63]
[1672774863621,58.14,12.912,12.901,109.3068]
[1672774863835,30.0,12.914,12.901,88.01095339]
[1672774863836,58.14,12.913,12.901,88.01095339]
[1672774864028,30.0,12.912,12.9,13.63]
[1672774865106,30.0,12.912,12.9,60.27786017]
[1672774866464,58.14,12.913,12.9,60.27786017]
[1672774866664,137.64486848,12.937,12.9,95.20855339]
[1672774866665,58.12,12.916,12.9,95.20855339]
[1672774866870,30.0,12.916,12.901,220.27508685]
[1672774867295,30.0,12.916,12.902,84.00522006]
[1672774867820,30.0,12.916,12.903,46.64786017]
[1672774868449,30.0,12.916,12.903,84.00522006]
[1672774868771,30.0,12.916,12.904,46.64786017]
[1672774869179,58.12,12.917,12.904,46.64786017]
[1672774869389,88.11,12.918,12.904,93.57444702]
[1672774869613,20.0,12.917,12.904,126.97460691]
[1672774869819,20.0,12.917,12.905,45.9085935]
[1672774870029,88.1,12.922,12.906,58.17]
[1672774870239,58.1,12.922,12.91,13.63]
[1672774870449,30.0,12.922,12.91,13.63]
[1672774870664,30.0,12.922,12.911,92.83518035]
[1672774871082,30.0,12.922,12.912,45.9085935]
[1672774871297,58.09,12.923,12.912,45.9085935]
[1672774871512,30.0,12.924,12.912,207.82068035]
[1672774871910,30.0,12.924,12.913,51.02192684]
[1672774872862,88.08,12.926,12.912,114.9855]
[1672774877612,88.08,12.926,12.912,166.00742684]
[1672774879192,58.08,12.926,12.912,166.00742684]
[1672774879382,30.0,12.927,12.913,58.14]
[1672774879593,30.0,12.927,12.912,166.00742684]
[1672774881295,30.0,12.925,12.912,166.00742684]
[1672774882444,30.0,12.925,12.912,201.66958673]
[1672774883711,30.0,12.925,12.913,58.14]
[1672774884112,30.0,12.925,12.913,109.16192684]
[1672774884534,30.0,12.925,12.913,51.02192684]
[1672774885165,30.0,12.923,12.912,114.9855]
[1672774885389,58.1,12.922,12.912,114.9855]
[1672774885608,30.0,12.923,12.912,114.9855]
[1672774888360,58.09,12.924,12.912,114.9855]
[1672774889716,30.0,12.925,12.912,114.9855]
[1672774893061,30.0,12.923,12.912,114.9855]
[1672774894551,30.0,12.925,12.912,114.9855]
[1672774896131,30.0,12.923,12.908,58.16]
[1672774896321,30.0,12.919,12.907,111.6912]
[1672774896531,20.0,12.918,12.907,111.6912]
[1672774898105,30.0,12.928,12.908,30.0]
[1672774898320,30.0,12.928,12.909,58.15]
[1672774898746,30.0,12.925,12.909,58.15]
[1672774898951,30.0,12.925,12.908,58.16]
[1672774899162,13.51,12.92,12.907,111.6912]
[1672774899371,78.11,12.919,12.907,111.6912]
[1672774899589,30.0,12.918,12.907,111.6912]
[1672774900112,20.0,12.917,12.907,111.6912]
[1672774900316,30.0,12.916,12.907,111.6912]
[1672774907183,30.0,12.914,12.907,111.6912]
[1672774911285,58.13,12.915,12.907,111.6912]
[1672774911492,108.11,12.919,12.907,111.6912]
[1672774911807,50.0,12.919,12.907,111.6912]
[1672774912012,294.6,12.922,12.908,69.24137784]
[1672774912013,30.0,12.922,12.908,69.24137784]
[1672774912224,30.0,12.926,12.908,69.24137784]
[1672774912425,30.0,12.926,12.908,58.16]
[1672774912633,88.08,12.926,12.908,58.16]
[1672774912957,58.08,12.926,12.91,6.83]
[1672774913185,2.4751736,12.929,12.911,58.15]
[1672774913503,2.4751736,12.929,12.92,6.83]
[1672774915277,2.4751736,12.929,12.92,13.52]
[1672774916322,2.4751736,12.929,12.921,58.1]
[1672774916743,2.4751736,12.929,12.92,13.52]
[1672774918238,2.4751736,12.929,12.921,58.1]
[1672774918547,2.4751736,12.929,12.92,13.52]
[1672774920224,2.4751736,12.929,12.922,30.0]
[1672774920437,74.5177527,12.941,12.921,58.1]
[1672774920438,20.0,12.939,12.923,58.09]
[1672774920651,58.02,12.938,12.921,58.1]
[1672774920861,20.0,12.937,12.921,58.1]
[1672774921061,20.0,12.937,12.92,71.82]
[1672774921270,30.0,12.935,12.92,71.82]
[1672774921806,30.0,12.935,12.92,13.72]
[1672774922017,58.04,12.934,12.92,13.72]
[1672774922333,30.0,12.933,12.92,13.72]
[1672774922522,58.05,12.932,12.92,13.72]
[1672774922734,58.04,12.934,12.92,13.72]
[1672774923699,58.04,12.935,12.92,13.72]
[1672774924338,58.04,12.935,12.92,71.82]
[1672774924536,58.04,12.935,12.92,13.72]
[1672774924735,58.04,12.935,12.92,13.55]
[1672774925375,30.0,12.934,12.92,13.55]
[1672774925696,30.0,12.932,12.92,13.55]
[1672774926306,30.0,12.93,12.919,113.6356]
[1672774926630,30.0,12.928,12.919,113.6356]
[1672774927041,20.0,12.927,12.919,113.6356]
[1672774927252,30.0,12.926,12.919,113.6356]
[1672774927677,20.0,12.927,12.919,113.6356]
[1672774927895,20.0,12.928,12.919,113.6356]
[1672774928314,65.97960681,12.933,12.919,113.6356]
[1672774928532,58.05,12.933,12.921,30.0]
[1672774928738,58.04,12.935,12.92,13.61]
[1672774928949,58.04,12.935,12.92,71.71]
[1672774929360,58.04,12.935,12.92,43.61]
[1672774930104,58.02,12.938,12.922,30.0]
[1672774930309,58.02,12.938,12.923,58.09]
[1672774930518,20.0,12.937,12.922,30.0]
[1672774930737,20.0,12.937,12.923,58.09]
[1672774932612,50.0,12.937,12.922,58.1]
[1672774933791,50.0,12.937,12.921,88.1]
[1672774934105,20.0,12.937,12.921,88.1]
[1672774934425,20.0,12.938,12.921,132.80860439]
[1672774934627,20.0,12.938,12.921,177.29759789]
[1672774934948,20.0,12.939,12.921,177.29759789]
[1672774935768,20.0,12.939,12.921,226.4639114]
[1672774936079,20.0,12.94,12.921,226.4639114]
[1672774936294,44.5177527,12.941,12.93,13.48]
[1672774936499,44.5177527,12.941,12.931,58.06]
[1672774936924,44.5177527,12.941,12.93,13.48]
[1672774938082,44.5177527,12.941,12.93,43.48]
[1672774938519,44.5177527,12.941,12.931,58.06]
[1672774941769,44.5177527,12.941,12.932,30.0]
[1672774941983,44.5177527,12.941,12.931,58.06]
[1672774944287,44.5177527,12.941,12.932,30.0]
[1672774944617,44.5177527,12.941,12.934,30.0]
[1672774944821,44.5177527,12.941,12.933,58.05]
[1672774946186,44.5177527,12.941,12.932,58.05]
[1672774946384,44.5177527,12.941,12.931,47.9622]
[1672774947238,30.0,12.94,12.931,47.9622]
[1672774947430,43.54,12.94,12.926,23.0799]
[1672774947638,30.0,12.938,12.926,23.0799]
[1672774948076,20.0,12.937,12.926,23.0799]
[1672774949128,30.0,12.936,12.926,23.0799]
[1672774950062,20.0,12.937,12.926,23.0799]
[1672774950586,44.5177527,12.941,12.927,78.07]
[1672774950809,44.5177527,12.941,12.928,30.0]
[1672774950997,44.5177527,12.941,12.929,58.06]
[1672774951335,99.55960681,12.94,12.928,47.6147]
[1672774951528,30.0,12.939,12.928,47.6147]
[1672774951740,78.02,12.938,12.928,47.6147]
[1672774951953,30.0,12.937,12.928,47.6147]
[1672774952279,20.0,12.936,12.928,47.6147]
[1672774956156,30.0,12.935,12.928,47.6147]
[1672774957848,20.0,12.936,12.928,47.6147]
[1672774960794,37.92960681,12.939,12.928,47.6147]
[1672774960795,20.0,12.937,12.928,47.6147]
[1672774961107,60.32797989,12.938,12.928,47.6147]
[1672774961529,30.0,12.937,12.928,47.6147]
[1672774961741,20.0,12.936,12.928,47.6147]
[1672774962692,30.0,12.935,12.928,47.6147]
[1672774964690,20.0,12.936,12.928,47.6147]
[1672774967722,20.0,12.937,12.928,47.6147]
[1672774968368,30.0,12.936,12.928,47.6147]
[1672774971311,88.03,12.936,12.928,47.6147]
[1672774972555,20.0,12.935,12.926,54.042906]
[1672774972768,30.0,12.933,12.926,30.963006]
[1672774972971,78.05,12.932,12.926,30.963006]
[1672774973213,40.32797989,12.929,12.926,0.003006]
[1672774973400,30.0,12.927,12.926,0.003006]
[1672774973611,50.0,12.927,12.926,0.003006]
[1672774976460,20.0,12.927,12.926,0.003006]
[1672774978754,20.0,12.927,12.916,58.12]
[1672774978983,20.0,12.928,12.915,58.13]
[1672774980563,20.0,12.928,12.915,104.6685]
[1672774981605,30.0,12.927,12.915,104.6685]
[1672774981804,58.08,12.926,12.915,46.5385]
[1672774982008,30.0,12.925,12.915,46.5385]
[1672774982338,58.08,12.926,12.915,46.5385]
[1672774982549,67.1806,12.928,12.915,104.6685]
[1672774983481,67.1806,12.928,12.916,30.0]
[1672774983690,67.1806,12.928,12.917,58.12]
[1672774983901,20.0,12.928,12.918,30.0]
[1672774984111,20.0,12.931,12.919,58.11]
[1672774984326,30.0,12.93,12.917,58.12]
[1672774984530,20.0,12.929,12.917,58.12]
[1672774985162,20.0,12.929,12.916,58.12]
[1672774987895,58.05,12.933,12.916,58.12]
[1672774988105,53.123,12.934,12.92,13.61]
[1672774988338,53.123,12.934,12.921,167.1724]
[1672774988770,23.123,12.934,12.921,167.1724]
[1672774989079,23.123,12.934,12.921,214.583]
[1672774989491,23.123,12.934,12.922,30.0]
[1672774989710,23.123,12.934,12.923,58.09]
[1672774989919,46.6742,12.935,12.923,58.09]
[1672774990448,46.6742,12.935,12.924,42.9243135]
[1672774990665,46.6742,12.935,12.925,58.08]
[1672774990866,30.0,12.937,12.923,105.8537]
[1672774991082,20.0,12.936,12.923,105.8537]
[1672774991820,20.0,12.936,12.924,30.0]
[1672774992043,20.0,12.936,12.925,58.08]
[1672774992435,30.0,12.937,12.925,58.08]
[1672774992436,50.0,12.937,12.925,58.08]
[1672774992764,20.0,12.937,12.925,58.08]
[1672774992980,60.32797989,12.937,12.925,58.08]
[1672774993384,20.0,12.937,12.925,58.08]
[1672774993810,60.32797989,12.937,12.925,58.08]
[1672774994218,20.0,12.937,12.925,58.08]
[1672774996428,50.0,12.937,12.925,58.08]
[1672774996864,30.0,12.936,12.925,58.08]
[1672774997055,30.0,12.937,12.924,47.7637]
[1672774997269,101.28369789,12.94,12.924,47.7637]
[1672774997270,30.955718,12.94,12.93,6.78]
[1672774997475,30.955718,12.94,12.931,58.06]
[1672774997689,30.955718,12.94,12.93,6.78]
[1672774998127,30.955718,12.94,12.931,58.06]
[1672775000744,44.5177527,12.941,12.931,58.06]
[1672775001465,44.5177527,12.941,12.932,30.0]
[1672775001697,44.5177527,12.941,12.933,58.05]
[1672775002309,44.5177527,12.941,12.931,58.06]
[1672775002541,44.5177527,12.941,12.93,55.2222]
[1672775002855,58.02,12.94,12.929,111.337]
[1672775003064,20.0,12.939,12.929,111.337]
[1672775003281,58.02,12.938,12.929,111.337]
[1672775003470,20.0,12.937,12.929,111.337]
[1672775003683,50.0,12.937,12.929,111.337]
[1672775004737,30.0,12.936,12.929,111.337]
[1672775005262,58.04,12.935,12.929,111.337]
[1672775005468,30.0,12.934,12.929,111.337]
[1672775005678,58.05,12.933,12.929,111.337]
[1672775006000,40.32797989,12.933,12.929,111.337]
[1672775006220,78.05,12.932,12.915,104.8734]
[1672775006411,58.05,12.932,12.916,132.6736]
[1672775006620,30.0,12.934,12.917,88.12]
[1672775006621,58.04,12.934,12.917,88.12]
[1672775006831,58.04,12.934,12.917,134.8634]
[1672775007485,58.04,12.934,12.919,30.0]
[1672775007894,58.04,12.934,12.919,88.11]
[1672775008431,30.0,12.933,12.919,104.8534]
[1672775008742,30.0,12.933,12.919,46.7434]
[1672775009468,58.05,12.932,12.919,46.7434]
[1672775009670,30.0,12.933,12.919,104.8534]
[1672775009882,30.0,12.933,12.919,46.7434]
[1672775010090,20.0,12.932,12.917,58.12]
[1672775010306,36.8,12.93,12.916,136.0189]
[1672775010631,78.06,12.929,12.916,136.0189]
[1672775010947,20.0,12.929,12.916,194.1389]
[1672775012826,24.073,12.934,12.92,13.63]
[1672775013038,24.073,12.934,12.921,58.1]
[1672775013670,54.073,12.934,12.922,117.7338]
[1672775014306,30.0,12.934,12.922,117.7338]
[1672775017353,40.32797989,12.932,12.918,58.11]
[1672775017569,30.0,12.929,12.916,117.1028]
[1672775017769,20.0,12.928,12.916,117.1028]
[1672775018093,30.0,12.927,12.916,117.1028]
[1672775018412,20.0,12.926,12.916,117.1028]
[1672775019338,20.0,12.928,12.916,117.1028]
[1672775023549,20.0,12.928,12.917,58.12]
[1672775023865,20.0,12.928,12.916,175.2228]
[1672775025869,50.0,12.928,12.916,175.2228]
[1672775026501,30.0,12.927,12.916,117.1028]
[1672775026700,20.0,12.926,12.916,117.1028]
[1672775027220,66.00960681,12.925,12.909,58.15]
[1672775027438,13.51,12.92,12.907,58.16]
[1672775027645,20.0,12.919,12.907,58.16]
[1672775027972,27.92960681,12.919,12.907,58.16]
[1672775028186,30.0,12.918,12.907,58.16]
[1672775028389,20.0,12.917,12.906,60.6451736]
[1672775028816,20.0,12.917,12.906,91.6506056]
[1672775029011,27.92960681,12.917,12.906,91.6506056]
[1672775029442,30.0,12.916,12.906,33.4806056]
[1672775029679,30.0,12.914,12.906,33.4806056]
[1672775029878,78.14,12.913,12.906,33.4806056]
[1672775030086,30.0,12.912,12.906,33.4806056]
[1672775030623,20.0,12.911,12.906,33.4806056]
[1672775030833,30.0,12.91,12.906,33.4806056]
[1672775031029,30.0,12.91,12.897,58.21]
[1672775031244,86.07960681,12.909,12.896,2.4751736]
[1672775031787,37.92960681,12.908,12.896,2.4751736]
[1672775032096,30.0,12.906,12.896,2.4751736]
[1672775032513,7.92960681,12.905,12.896,2.4751736]
[1672775033129,20.0,12.907,12.896,32.4751736]
[1672775033350,264.6,12.912,12.896,32.4751736]
[1672775033671,264.6,12.912,12.897,114.88084292]
[1672775033874,264.6,12.912,12.9,13.52]
[1672775034076,264.6,12.912,12.901,58.19]
[1672775034286,13.51,12.91,12.896,126.49897558]
[1672775034619,58.15,12.909,12.896,72.3998736]
[1672775034810,30.0,12.908,12.896,72.3998736]
[1672775035021,20.0,12.907,12.896,72.3998736]
[1672775035253,20.0,12.907,12.896,130.6098736]
[1672775035651,20.0,12.908,12.896,130.6098736]
[1672775040273,66.08960681,12.907,12.896,72.3998736]
[1672775040483,30.0,12.906,12.896,72.3998736]
[1672775040694,37.92960681,12.906,12.896,72.3998736]
[1672775040915,30.0,12.906,12.896,72.3998736]
[1672775041555,58.16,12.907,12.896,72.3998736]
[1672775041771,20.0,12.906,12.896,72.3998736]
[1672775041974,37.92960681,12.907,12.896,72.3998736]
[1672775042300,20.0,12.906,12.896,72.3998736]
[1672775043456,20.0,12.908,12.896,72.3998736]
[1672775045027,20.0,12.908,12.896,176.14207479]
[1672775047236,20.0,12.909,12.896,176.14207479]
[1672775049639,20.0,12.909,12.896,223.06179677]
[1672775049854,20.0,12.909,12.896,268.37705576]
[1672775050285,20.0,12.909,12.896,222.84485457]
[1672775050487,20.0,12.909,12.896,177.52959558]
[1672775050706,20.0,12.909,12.896,130.6098736]
[1672775052688,20.0,12.91,12.896,130.6098736]
[1672775053345,30.0,12.909,12.896,130.6098736]
[1672775053658,20.0,12.908,12.896,130.6098736]
[1672775053869,47.5302,12.91,12.896,170.00607479]
[1672775054085,30.0,12.908,12.896,130.6098736]
[1672775054395,20.0,12.907,12.896,130.6098736]
[1672775058178,20.0,12.907,12.896,72.3998736]
[1672775061324,30.0,12.905,12.896,72.3998736]
[1672775061524,30.0,12.905,12.896,47.7822736]
[1672775063219,58.17,12.906,12.896,47.7822736]
[1672775063424,30.0,12.905,12.896,47.7822736]
[1672775063844,58.17,12.906,12.896,47.7822736]
[1672775064162,78.16,12.907,12.896,47.7822736]
[1672775064992,30.0,12.906,12.896,47.7822736]
[1672775068579,20.0,12.907,12.897,30.0]
[1672775068983,20.0,12.908,12.897,30.0]
[1672775069193,20.0,12.908,12.897,70.84311185]
[1672775069403,20.0,12.908,12.898,58.2]
[1672775069719,20.0,12.908,12.899,40.84311185]
[1672775071937,20.0,12.908,12.897,105.1005]
[1672775072128,50.0,12.908,12.897,105.1005]
[1672775072350,50.0,12.908,12.897,46.8905]
[1672775072774,90.32797989,12.908,12.897,46.8905]
[1672775072985,30.0,12.907,12.897,46.8905]
[1672775073191,20.0,12.906,12.897,46.8905]
[1672775076768,264.6,12.911,12.898,30.0]
[1672775076978,264.6,12.911,12.899,58.2]
[1672775077812,264.6,12.911,12.9,43.63]
[1672775078032,264.6,12.911,12.901,58.19]
[1672775078879,264.6,12.911,12.901,170.4146]
[1672775080013,264.6,12.911,12.902,30.0]
[1672775080439,264.6,12.911,12.901,170.4146]
[1672775083807,395.9,12.914,12.901,181.49597784]
[1672775084017,47.4534,12.917,12.902,30.0]
[1672775084223,22.662,12.92,12.91,13.51]
[1672775084447,40.32797989,12.923,12.91,13.51]
[1672775084641,40.32797989,12.923,12.911,71.49037287]
[1672775085382,40.32797989,12.923,12.914,30.0]
[1672775085593,103.992,12.925,12.913,71.49037287]
[1672775086041,144.31997989,12.925,12.913,71.49037287]
[1672775086355,86.23997989,12.925,12.914,30.0]
[1672775086570,86.23997989,12.925,12.915,71.49037287]
[1672775086882,45.912,12.925,12.913,148.63937287]
[1672775087080,86.23997989,12.925,12.913,148.63937287]
[1672775087287,45.912,12.925,12.915,30.0]
[1672775087516,58.07,12.928,12.915,101.49037287]
[1672775088353,2.4751736,12.929,12.916,69.20137784]
[1672775088569,2.4751736,12.929,12.917,91.49037287]
[1672775088764,2.4751736,12.929,12.918,178.0101]
[1672775088969,2.4751736,12.929,12.919,71.49037287]
[1672775089185,2.4751736,12.929,12.92,58.1]
[1672775089496,2.4751736,12.929,12.921,71.49037287]
[1672775089924,2.4751736,12.929,12.919,71.49037287]
[1672775090137,30.0,12.928,12.919,71.49037287]
[1672775090336,20.0,12.927,12.919,71.49037287]